bitfinex/quotes_SOLUSD_20250630
["timestamp","ask_amount","ask_price","bid_price","bid_amount"]
[1751245506999,0.02,152.44,152.43,4.94331709]
[1751245507222,16.2,152.44,152.43,4.94331709]
[1751245510424,0.02,152.44,152.43,4.94331709]
[1751245510718,16.18,152.44,152.43,10.19162778]
[1751245510886,0.02,152.44,152.43,10.19162778]
[1751245511506,0.02,152.44,152.43,4.94331709]
[1751245511803,0.02,152.44,152.43,10.19162778]
[1751245512905,0.02,152.44,152.43,4.94331709]
[1751245514017,0.02,152.44,152.43,10.19162778]
[1751245514703,0.02,152.44,152.43,4.94331709]
[1751245515009,0.02,152.44,152.43,10.19162778]
[1751245515614,0.02,152.44,152.43,4.94331709]
[1751245515806,0.02,152.44,152.43,10.19162778]
[1751245516206,42.46432314,152.44,152.4,4.94331709]
[1751245516400,42.46432314,152.44,152.39,5.84]
[1751245516715,61.113972,152.44,152.43,4.94331709]
[1751245519819,18.64964886,152.43,152.39,5.84]
[1751245520027,18.933972,152.43,152.42,4.94331709]
[1751245520203,35.093972,152.43,152.42,4.94331709]
[1751245520712,0.28432314,152.42,152.39,5.84]
[1751245520913,0.28432314,152.42,152.41,4.94331709]
[1751245521222,44.933972,152.4,152.39,5.84]
[1751245521423,61.093972,152.4,152.39,10.78331709]
[1751245522331,66.34331583,152.4,152.39,5.84]
[1751245522628,66.34331583,152.4,152.39,10.78331709]
[1751245523112,61.093972,152.4,152.39,10.78331709]
[1751245526756,66.34331583,152.4,152.39,5.84]
[1751245526928,66.34331583,152.4,152.39,10.78331709]
[1751245527622,61.093972,152.4,152.39,10.78331709]
[1751245528741,66.34331583,152.4,152.39,10.78331709]
[1751245529245,18.933972,152.39,152.38,0.04]
[1751245530227,20.500372,152.39,152.38,0.04]
[1751245531256,25.75006029,152.39,152.38,0.04]
[1751245532642,30.69337738,152.39,152.38,0.04]
[1751245533149,33.09639254,152.39,152.38,0.04]
[1751245533744,36.51442166,152.39,152.38,0.04]
[1751245541659,91.54345465,152.39,152.34,0.04]
[1751245541860,23.87728909,152.35,152.34,0.04]
[1751245542055,40.03728909,152.35,152.34,0.04]
[1751245543053,45.28835571,152.35,152.34,0.04]
[1751245544742,47.69069692,152.35,152.34,0.04]
[1751245545060,45.28835571,152.35,152.34,0.04]
[1751245546361,40.34503862,152.35,152.34,0.04]
[1751245546965,40.36503862,152.35,152.34,0.04]
[1751245547960,45.30835571,152.35,152.34,0.04]
[1751245549463,45.96092684,152.35,152.34,0.04]
[1751245551450,45.30835571,152.35,152.34,0.04]
[1751245551760,40.36503862,152.35,152.34,0.04]
[1751245553271,45.30835571,152.35,152.34,0.04]
[1751245553962,48.72874924,152.35,152.34,0.04]
[1751245554280,49.38132037,152.35,152.34,0.04]
[1751245560467,44.43800328,152.35,152.34,0.04]
[1751245560776,49.38132037,152.35,152.34,0.04]
[1751245560979,48.72874924,152.35,152.34,0.04]
[1751245561182,43.78543215,152.35,152.34,0.04]
[1751245561361,48.72874924,152.35,152.34,0.04]
[1751245561763,48.4444261,152.35,152.34,0.04]
[1751245561962,48.72874924,152.35,152.34,0.04]
[1751245562277,43.78543215,152.35,152.34,0.04]
[1751245562457,48.72874924,152.35,152.34,0.04]
[1751245563172,43.78543215,152.35,152.34,0.04]
[1751245563480,48.72874924,152.35,152.34,0.04]
[1751245564075,43.78543215,152.35,152.34,0.04]
[1751245564277,48.72874924,152.35,152.34,0.04]
[1751245565090,18.64964886,152.27,152.23,12.4407]
[1751245565273,35.093972,152.26,152.23,12.4407]
[1751245565474,35.093972,152.26,152.24,4.94331709]
[1751245565676,35.093972,152.26,152.23,12.4407]
[1751245565880,35.093972,152.26,152.25,8.81713598]
[1751245567373,35.093972,152.26,152.25,3.87381889]
[1751245567569,35.093972,152.26,152.25,8.81713598]
[1751245568679,35.093972,152.26,152.25,7.29643598]
[1751245570376,38.30413363,152.26,152.25,7.29643598]
[1751245573301,38.30413363,152.26,152.25,2.35311889]
[1751245573500,38.30413363,152.26,152.25,7.29643598]
[1751245575809,38.30413363,152.26,152.25,7.33643598]
[1751245576705,43.55830412,152.26,152.25,2.39311889]
[1751245576881,38.32413363,152.26,152.25,7.33643598]
[1751245577699,27.39830412,152.26,152.25,7.33643598]
[1751245577899,43.57830412,152.26,152.25,7.33643598]
[1751245578290,43.57830412,152.26,152.25,2.39311889]
[1751245578493,43.57830412,152.26,152.25,7.33643598]
[1751245578701,38.03981049,152.26,152.25,7.33643598]
[1751245578904,38.32413363,152.26,152.25,7.33643598]
[1751245579706,38.32413363,152.26,152.25,2.39311889]
[1751245579890,38.32413363,152.26,152.18,0.04]
[1751245579891,0.28432314,152.25,152.18,0.04]
[1751245580215,26.0,152.13,152.06,5.13739321]
[1751245580410,26.0,152.09,152.03,7.06]
[1751245580587,17.52,152.08,152.03,7.06]
[1751245580793,26.0,152.05,152.03,7.06]
[1751245581200,17.62,152.04,152.03,7.06]
[1751245581600,36.553972,152.04,152.03,7.06]
[1751245581816,26.0,152.01,151.96,7.06]
[1751245581990,26.0,152.01,152.0,4.94331709]
[1751245582612,0.28432314,152.03,151.96,17.06]
[1751245582802,0.28432314,152.03,152.02,4.94331709]
[1751245583003,18.933972,152.03,151.96,17.06]
[1751245583204,18.933972,152.03,152.02,4.94331709]
[1751245583506,18.933972,152.03,151.97,5.2639814]
[1751245583707,44.933972,152.08,152.0,4.94331709]
[1751245584007,62.593972,152.08,152.0,4.94331709]
[1751245584211,17.66,152.07,151.97,7.06]
[1751245584413,17.66,152.08,152.06,4.94331709]
[1751245584613,17.66,152.08,152.06,7.06]
[1751245585315,17.66,152.08,152.06,12.00331709]
[1751245585505,17.66,152.08,152.07,4.94331709]
[1751245585700,43.66,152.08,152.07,4.94331709]
[1751245585898,17.66,152.08,152.07,4.94331709]
[1751245586095,43.66,152.08,152.07,4.94331709]
[1751245586304,17.64,152.1,152.07,4.94331709]
[1751245586502,26.0,152.08,152.06,7.06]
[1751245586698,26.0,152.08,152.07,4.94331709]
[1751245590101,26.0,152.08,152.06,7.06]
[1751245590709,26.0,152.08,152.07,4.94331709]
[1751245591330,42.64286121,152.08,152.07,7.08]
[1751245591515,16.64286121,152.08,152.07,12.02331709]
[1751245591712,4.75548881,152.08,152.07,12.02331709]
[1751245591912,12.68039372,152.08,152.07,7.08]
[1751245592119,30.75548881,152.08,152.07,7.08]
[1751245592317,38.67781312,152.08,152.07,7.08]
[1751245592628,38.67781312,152.08,152.07,12.02331709]
[1751245593005,38.67781312,152.08,152.07,11.794791]
[1751245593233,30.75548881,152.08,152.07,11.794791]
[1751245594230,30.75548881,152.08,152.07,17.05552618]
[1751245594622,12.67448938,152.08,152.07,17.05552618]
[1751245594819,4.75548881,152.08,152.07,17.05552618]
[1751245595230,30.75548881,152.08,152.07,17.05552618]
[1751245595529,31.03981195,152.08,152.07,17.05552618]
[1751245596909,49.68946081,152.08,152.07,6.85147391]
[1751245597118,49.68946081,152.08,152.07,11.794791]
[1751245597716,49.68946081,152.08,152.07,6.85147391]
[1751245598233,49.68946081,152.08,152.07,11.794791]
[1751245598535,49.68946081,152.08,152.07,6.85147391]
[1751245599830,49.68946081,152.08,152.07,11.794791]
[1751245600339,49.68946081,152.08,152.07,6.85147391]
[1751245600524,18.64964886,152.05,152.04,7.08]
[1751245600733,23.40513767,152.05,152.04,12.02331709]
[1751245601327,29.33914373,152.05,152.04,12.02331709]
[1751245601516,23.40513767,152.05,152.04,12.02331709]
[1751245602611,23.40513767,152.05,152.04,7.08]
[1751245602813,23.40513767,152.05,152.04,12.02331709]
[1751245603123,25.77927251,152.05,152.04,12.02331709]
[1751245603544,7.12962365,152.05,152.04,12.02331709]
[1751245603718,7.41394679,152.05,152.04,12.02331709]
[1751245604049,7.41428445,152.05,152.04,12.02331709]
[1751245604926,7.41428445,152.05,152.04,7.08]
[1751245605134,7.41428445,152.05,152.04,12.02331709]
[1751245605316,7.41428445,152.05,152.04,7.08]
[1751245605514,7.41428445,152.05,152.04,12.02331709]
[1751245605515,5.03981195,152.05,152.04,12.02331709]
[1751245605842,5.03981195,152.05,152.04,17.2850903]
[1751245605843,4.75548881,152.05,152.04,17.2850903]
[1751245606132,4.75548881,152.05,152.04,12.02331709]
[1751245606339,4.75548881,152.05,152.04,7.08]
[1751245606632,4.75548881,152.05,152.04,17.2850903]
[1751245607812,29.38956685,152.08,152.04,17.2850903]
[1751245607813,0.14216157,152.07,152.04,17.2850903]
[1751245608017,4.75429688,152.06,152.04,12.34177321]
[1751245608322,0.28432314,152.07,152.05,4.94331709]
[1751245608528,26.28432314,152.07,152.06,4.94331709]
[1751245608726,31.04128352,152.07,152.06,4.94331709]
[1751245610235,33.42263653,152.07,152.06,4.94331709]
[1751245610436,31.04128352,152.07,152.06,4.94331709]
[1751245610616,33.42263653,152.07,152.06,4.94331709]
[1751245610822,33.42263653,152.07,152.05,5.26133828]
[1751245611016,26.28432314,152.07,152.05,5.26133828]
[1751245611238,4.76223664,152.06,152.05,5.26133828]
[1751245611436,4.76223664,152.06,152.05,10.20465537]
[1751245612142,3.24740528,152.08,152.05,10.20465537]
[1751245612344,4.76601891,152.07,152.05,5.26133828]
[1751245612524,3.58268095,152.08,152.05,5.26133828]
[1751245612731,4.76626403,152.07,152.05,5.26133828]
[1751245613030,0.28432314,152.08,152.05,5.26133828]
[1751245613240,4.76864637,152.07,152.05,5.26133828]
[1751245613540,4.76864637,152.06,152.05,5.26133828]
[1751245613748,4.76864637,152.06,152.05,10.20465537]
[1751245614238,4.76864637,152.06,152.05,5.26133828]
[1751245614538,0.28432314,152.08,152.05,10.20465537]
[1751245614747,0.02,152.09,152.07,4.94331709]
[1751245615041,0.02,152.09,152.08,4.94331709]
[1751245615042,26.02,152.09,152.08,4.94331709]
[1751245615229,33.18021133,152.09,152.08,4.94331709]
[1751245616021,52.11418333,152.09,152.03,5.30209568]
[1751245616232,0.28432314,152.07,152.06,4.94331709]
[1751245616445,5.06083125,152.07,152.05,4.94331709]
[1751245616627,0.28432314,152.07,152.04,12.32160513]
[1751245616851,0.28432314,152.07,152.05,4.94331709]
[1751245617161,26.0,152.08,152.06,4.94331709]
[1751245617368,4.78070992,152.07,152.06,4.94331709]
[1751245617539,4.78070992,152.07,152.06,12.00331709]
[1751245617741,4.78070992,152.07,152.06,7.06]
[1751245617944,4.78070992,152.07,152.06,12.00331709]
[1751245618138,7.17307188,152.07,152.06,12.00331709]
[1751245618340,7.17307188,152.07,152.06,7.06]
[1751245618564,7.17307188,152.07,152.06,12.00331709]
[1751245618867,4.78070992,152.07,152.06,12.00331709]
[1751245619067,4.78070992,152.07,152.06,4.94331709]
[1751245619240,4.78070992,152.07,152.06,12.00331709]
[1751245620165,4.78070992,152.07,152.06,17.26439824]
[1751245620370,7.17749855,152.07,152.06,17.26439824]
[1751245620669,4.78070992,152.07,152.06,17.26439824]
[1751245620964,4.78070992,152.07,152.06,7.06]
[1751245621135,4.78070992,152.07,152.06,4.94331709]
[1751245621340,22.75315246,152.11,152.06,12.00331709]
[1751245621542,2.39954292,152.1,152.09,8.13408103]
[1751245622357,2.39954292,152.1,152.06,20.13739812]
[1751245622555,2.39954292,152.09,152.06,20.13739812]
[1751245622762,2.39954292,152.08,152.06,20.13739812]
[1751245622973,8.59672974,152.1,152.07,4.94331709]
[1751245623142,2.40266036,152.09,152.06,8.13408103]
[1751245623344,2.40266036,152.08,152.07,20.13739812]
[1751245624295,2.40266036,152.08,152.07,12.00331709]
[1751245624665,2.40266036,152.08,152.07,17.26405227]
[1751245628771,2.40266036,152.08,152.07,13.13109215]
[1751245629195,2.40266036,152.08,152.07,15.24777506]
[1751245629768,2.40266036,152.08,152.07,20.19109215]
[1751245630194,2.40266036,152.08,152.07,12.00331709]
[1751245631267,2.40266036,152.08,152.07,7.06]
[1751245631582,2.40266036,152.08,152.07,24.20443864]
[1751245633115,2.40266036,152.08,152.07,12.00331709]
[1751245633318,2.40266036,152.08,152.07,7.06]
[1751245633506,2.40266036,152.08,152.07,12.00331709]
[1751245634398,2.40266036,152.08,152.07,7.06]
[1751245634910,7.94762882,152.08,152.07,7.06]
[1751245635209,12.89094591,152.08,152.07,7.06]
[1751245635412,30.05094591,152.08,152.07,7.06]
[1751245635620,30.05094591,152.08,152.04,8.19328113]
[1751245635796,30.05094591,152.08,152.05,7.06]
[1751245636300,27.64828555,152.08,152.05,7.06]
[1751245636894,2.41468045,152.07,152.05,7.06]
[1751245637203,2.41468045,152.06,152.05,7.06]
[1751245637803,2.41468045,152.06,152.05,20.19659822]
[1751245638005,17.16,152.08,152.05,20.19659822]
[1751245638216,2.41459487,152.07,152.05,20.19659822]
[1751245638420,17.16,152.08,152.05,20.19659822]
[1751245638620,2.41452864,152.07,152.05,20.19659822]
[1751245638918,17.16,152.08,152.05,20.19659822]
[1751245639121,2.41452913,152.07,152.05,20.19659822]
[1751245639291,22.42041406,152.08,152.05,20.19659822]
[1751245639498,2.41453613,152.07,152.05,20.19659822]
[1751245639802,22.42041406,152.08,152.05,20.19659822]
[1751245640006,2.41453613,152.07,152.05,20.19659822]
[1751245640312,5.26041406,152.08,152.05,20.19659822]
[1751245640521,2.41442612,152.07,152.05,15.25328113]
[1751245640705,5.26041406,152.08,152.05,20.19659822]
[1751245640904,2.69874877,152.07,152.06,6.76]
[1751245641619,154.54206586,152.07,152.03,8.23328113]
[1751245641824,49.59296595,152.04,152.03,0.04]
[1751245642004,52.00739158,152.04,152.03,0.04]
[1751245642912,33.96052198,152.04,152.03,0.04]
[1751245643233,52.61017084,152.04,152.03,0.04]
[1751245643418,57.55348793,152.04,152.03,0.04]
[1751245643827,57.55348793,152.04,152.03,6.8]
[1751245644213,52.61017084,152.04,152.03,0.04]
[1751245644524,33.96052198,152.04,152.03,0.04]
[1751245645020,57.55348793,152.04,152.03,6.8]
[1751245645514,52.61017084,152.04,152.03,6.8]
[1751245646615,74.63348793,152.04,152.03,6.8]
[1751245648429,74.63348793,152.04,152.03,0.04]
[1751245648626,69.69017084,152.04,152.03,0.04]
[1751245648813,74.63348793,152.04,152.03,0.04]
[1751245652734,69.69017084,152.04,152.03,0.04]
[1751245652923,74.49132636,152.04,152.03,0.04]
[1751245653235,74.63348793,152.04,152.03,0.04]
[1751245653622,69.69017084,152.04,152.03,0.04]
[1751245653825,74.63348793,152.04,152.03,0.04]
[1751245655319,78.04666732,152.04,152.03,0.04]
[1751245656329,73.10335023,152.04,152.03,0.04]
[1751245656539,78.04666732,152.04,152.03,0.04]
[1751245661117,56.02335023,152.04,152.03,0.04]
[1751245661326,74.57348793,152.04,152.03,0.04]
[1751245664932,69.63017084,152.04,152.03,0.04]
[1751245665154,74.57348793,152.04,152.03,0.04]
[1751245665466,69.63017084,152.04,152.03,0.04]
[1751245665672,74.57348793,152.04,152.03,0.04]
[1751245665959,74.43132636,152.04,152.03,0.04]
[1751245666328,69.63017084,152.04,152.03,0.04]
[1751245666534,173.51017084,152.04,152.03,0.04]
[1751245666832,193.0390623,152.04,152.03,0.04]
[1751245667457,188.09574521,152.04,152.03,0.04]
[1751245668563,169.42609635,152.04,152.03,0.04]
[1751245668856,164.16432314,152.04,152.03,0.04]
[1751245669029,147.18432314,152.04,152.03,0.04]
[1751245669229,163.88,152.04,152.03,0.04]
[1751245670045,146.9,152.04,152.03,0.04]
[1751245670244,174.36941344,152.04,152.03,0.04]
[1751245670563,169.42609635,152.04,152.03,0.04]
[1751245672345,171.83009444,152.04,152.03,0.04]
[1751245674269,176.77341153,152.04,152.03,0.04]
[1751245675565,171.83009444,152.04,152.03,0.04]
[1751245677481,24.93009444,152.04,152.03,0.04]
[1751245677657,29.87341153,152.04,152.03,0.04]
[1751245679179,52.87341153,152.04,152.03,0.04]
[1751245679582,29.87341153,152.04,152.03,0.04]
[1751245680382,24.93009444,152.04,152.03,0.04]
[1751245681197,2.40399809,152.04,152.03,4.98331709]
[1751245681364,16.9,152.04,152.03,0.04]
[1751245681565,16.9,152.04,152.03,4.98331709]
[1751245684678,16.9,152.04,152.03,6.64]
[1751245685896,46.0390623,152.04,152.03,0.04]
[1751245686081,48.45144046,152.04,152.03,0.04]
[1751245687484,57.51846624,152.04,152.03,0.04]
[1751245688277,52.57514915,152.04,152.03,0.04]
[1751245688477,57.51846624,152.04,152.03,0.04]
[1751245688677,52.57514915,152.04,152.03,0.04]
[1751245688979,40.61846624,152.04,152.03,0.04]
[1751245689293,57.49846624,152.04,152.03,0.04]
[1751245691082,55.86596624,152.04,152.03,0.04]
[1751245699504,38.98596624,152.04,152.03,0.04]
[1751245699907,55.78596624,152.04,152.03,0.04]
[1751245701410,55.76596624,152.04,152.03,0.04]
[1751245703821,38.98596624,152.04,152.03,0.04]
[1751245704014,55.76596624,152.04,152.03,0.04]
[1751245709131,29.35746846,152.04,152.03,0.04]
[1751245709328,48.29144046,152.04,152.03,0.04]
[1751245710848,31.55144046,152.04,152.03,0.04]
[1751245711139,48.25144046,152.04,152.03,0.04]
[1751245711337,48.90401159,152.04,152.03,0.04]
[1751245712517,78.30295527,152.04,152.03,0.04]
[1751245714454,78.30295527,152.04,151.96,0.04]
[1751245714658,25.43254498,152.03,151.96,0.04]
[1751245714856,19.76494929,152.02,151.96,0.04]
[1751245715029,25.14822184,152.01,151.96,0.04]
[1751245715228,22.73584368,152.01,151.96,0.04]
[1751245716933,14.78161896,152.01,151.96,0.04]
[1751245718750,16.75046164,151.98,151.96,0.04]
[1751245718942,5.26419688,151.97,151.96,0.04]
[1751245721961,5.26350417,151.99,151.96,0.04]
[1751245722173,152.16350417,151.99,151.96,0.04]
[1751245722874,146.9,151.99,151.96,0.04]
[1751245724157,5.2638505,151.98,151.96,0.04]
[1751245724360,26.0,151.97,151.96,0.04]
[1751245726051,146.9,151.99,151.96,0.04]
[1751245727571,146.9,151.99,151.97,6.42]
[1751245731861,146.9,151.99,151.97,11.68415928]
[1751245732457,146.9,151.99,151.97,6.42]
[1751245733189,146.9,151.99,151.97,11.68418371]
[1751245734777,26.0,152.01,151.98,1.6402]
[1751245735075,5.26198269,152.04,151.98,1.6402]
[1751245735278,31.26198269,152.04,151.98,6.90390596]
[1751245736377,26.0,152.04,151.98,6.90390596]
[1751245736872,146.9,152.05,151.98,6.90390596]
[1751245737077,146.9,152.05,151.99,18.64964886]
[1751245737572,26.0,152.06,152.01,20.22174886]
[1751245737770,0.02,152.07,152.01,20.22174886]
[1751245737771,0.02,152.07,152.03,18.64964886]
[1751245737963,0.02,152.07,152.04,6.24]
[1751245738278,0.02,152.07,152.05,1.5721]
[1751245738487,0.02,152.07,152.06,11.51618115]
[1751245744888,0.02,152.07,152.06,5.26108115]
[1751245745992,0.02,152.07,152.06,21.82108115]
[1751245746190,0.02,152.09,152.06,60.12663289]
[1751245746483,0.02,152.09,152.07,18.64964886]
[1751245748200,0.02,152.09,152.08,23.91003812]
[1751245753100,0.02,152.1,152.08,23.91003812]
[1751245753396,0.02,152.1,152.09,16.54]
[1751245753994,0.02,152.1,152.09,21.80004339]
[1751245754197,9.12709999,152.13,152.09,53.59980073]
[1751245754580,0.02,152.14,152.09,53.59980073]
[1751245758303,0.02,152.14,152.1,18.64964886]
[1751245758485,0.02,152.14,152.12,18.64964886]
[1751245758804,0.02,152.14,152.13,21.77866035]
[1751245759600,0.02,152.14,152.13,40.42830921]
[1751245763212,0.02,152.14,152.11,14.0535]
[1751245763495,0.02,152.14,152.12,22.68]
[1751245763802,26.02,152.14,152.07,20.22274886]
[1751245763991,26.0,152.13,152.08,22.68]
[1751245764176,26.0,152.12,152.09,16.52]
[1751245765282,26.0,152.12,152.08,6.16]
[1751245765495,0.02,152.14,152.08,6.16]
[1751245765496,26.0,152.09,152.08,6.16]
[1751245765785,26.0,152.09,152.08,22.68]
[1751245769821,26.0,152.09,152.08,6.16]
[1751245770122,26.0,152.09,152.08,22.68]
[1751245770419,26.0,152.09,152.08,6.16]
[1751245770613,26.0,152.09,152.05,23.00134917]
[1751245770814,26.0,152.09,152.06,22.68]
[1751245771015,26.0,152.09,152.05,23.00134917]
[1751245771225,26.0,152.09,152.07,22.68]
[1751245773531,26.0,152.1,152.07,27.94064695]
[1751245774123,26.0,152.1,152.08,16.52]
[1751245775206,26.0,152.1,152.08,21.7803029]
[1751245775408,0.02,152.14,152.08,21.7803029]
[1751245775607,26.0,152.12,152.08,21.7803029]
[1751245776729,0.02,152.14,152.08,21.7803029]
[1751245777324,26.0,152.13,152.08,21.7803029]
[1751245778724,26.0,152.13,152.1,5.25969756]
[1751245778913,26.0,152.13,152.11,16.52]
[1751245779626,26.0,152.12,152.11,16.52]
[1751245781809,26.0,152.13,152.11,16.52]
[1751245783920,26.0,152.12,152.11,16.52]
[1751245786019,5.25875869,152.13,152.07,11.42063339]
[1751245786228,5.25875869,152.13,152.08,16.52]
[1751245786413,5.25875869,152.13,152.07,11.42063339]
[1751245787035,5.25875869,152.13,152.08,16.52]
[1751245789326,5.25875869,152.13,152.09,16.52]
[1751245791032,18.42540958,152.13,152.05,0.04]
[1751245791231,26.0,152.11,152.06,22.68]
[1751245791811,26.0,152.1,152.06,6.16]
[1751245792109,27.5897,152.1,152.07,16.52]
[1751245792310,27.5897,152.1,152.06,6.16]
[1751245792520,27.5897,152.1,152.06,22.68]
[1751245792728,26.0,152.08,152.06,6.16]
[1751245793127,5.26073518,152.07,152.06,6.16]
[1751245794941,31.2605008,152.08,152.06,6.16]
[1751245800150,31.2605008,152.08,152.05,0.04]
[1751245800664,146.9,152.07,152.05,0.04]
[1751245800950,26.28432314,152.03,152.02,0.04]
[1751245801130,0.28432314,152.01,152.0,0.04]
[1751245801457,146.9,152.02,152.0,0.04]
[1751245802637,152.16270499,152.02,152.0,0.04]
[1751245803966,146.9,152.02,152.0,0.04]
[1751245804957,26.0,152.01,152.0,0.04]
[1751245806273,26.0,152.02,152.0,0.04]
[1751245806442,26.0,152.02,152.01,16.52]
[1751245810976,26.0,152.01,152.0,0.04]
[1751245812178,5.26281165,152.01,152.0,0.04]
[1751245813075,18.41499506,152.05,152.0,0.04]
[1751245813377,26.0,152.03,152.0,0.04]
[1751245815382,31.26238123,152.03,152.0,0.04]
[1751245815584,26.0,152.01,152.0,0.04]
[1751245817356,5.26248973,152.02,152.0,0.04]
[1751245818667,5.26248973,152.02,152.0,16.56]
[1751245819065,152.16117032,152.06,152.0,16.56]
[1751245819266,26.0,152.03,152.0,16.56]
[1751245820174,0.28432314,152.02,152.0,0.04]
[1751245820690,5.54713479,152.01,152.0,0.04]
[1751245824188,152.16250579,152.02,152.0,0.04]
[1751245825305,0.28432314,152.01,152.0,0.04]
[1751245826092,5.54713479,152.01,152.0,0.04]
[1751245839303,7.93353078,152.01,152.0,0.04]
[1751245844085,2.38639599,152.01,152.0,0.04]
[1751245844285,152.18258786,152.02,152.0,0.04]
[1751245844502,146.92,152.02,152.0,0.04]
[1751245844682,152.18258174,152.02,152.0,0.04]
[1751245845083,2.67494767,152.01,152.0,0.04]
[1751245845505,7.93775932,152.01,152.0,0.04]
[1751245845811,27.23997931,152.01,152.0,0.04]
[1751245848218,7.65343618,152.01,152.0,0.04]
[1751245848822,7.93775932,152.01,152.0,0.04]
[1751245849125,2.67494767,152.01,152.0,0.04]
[1751245849288,2.40932075,152.02,152.0,0.04]
[1751245849491,7.67181811,152.02,152.0,0.04]
[1751245849792,5.28249736,152.02,152.0,0.04]
[1751245852316,33.65304115,152.01,152.0,0.04]
[1751245852510,33.93736429,152.01,152.0,0.04]
[1751245853189,0.28432314,152.0,151.93,28.91780981]
[1751245853416,2.3902295,152.0,151.93,28.91780981]
[1751245853717,26.0,151.98,151.93,28.91780981]
[1751245856015,26.0,151.98,151.93,6.27780981]
[1751245856203,26.0,151.98,151.94,22.64]
[1751245858217,26.0,151.97,151.94,22.64]
[1751245858812,26.0,151.97,151.93,6.27780981]
[1751245859007,26.0,151.97,151.95,22.64]
[1751245860090,26.0,151.97,151.95,6.14]
[1751245860314,26.0,151.97,151.95,22.64]
[1751245861528,11.5,151.96,151.95,22.64]
[1751245861693,11.5,151.96,151.95,27.90488976]
[1751245862030,11.5,151.96,151.95,5.26488976]
[1751245862328,11.5,151.96,151.95,27.90488976]
[1751245862620,11.5,151.96,151.95,22.64]
[1751245864027,11.5,151.96,151.95,27.90488976]
[1751245864706,26.0,151.97,151.95,27.90488976]
[1751245864892,26.0,151.97,151.95,11.40488976]
[1751245865094,26.0,151.97,151.96,21.7645433]
[1751245866396,152.16156379,152.05,151.97,18.64964886]
[1751245866600,2.39506381,152.04,151.97,24.99354886]
[1751245866794,2.39506381,152.03,151.98,1.6172]
[1751245867018,26.02,152.02,151.98,1.6172]
[1751245867815,26.02,152.02,151.99,5.26350417]
[1751245867995,0.02,152.02,151.99,5.26350417]
[1751245871719,0.02,152.02,152.0,16.48]
[1751245875906,26.02,152.02,152.01,16.48]
[1751245876619,26.02,152.02,151.95,6.14]
[1751245876822,26.02,152.02,151.96,16.48]
[1751245877021,5.26281165,152.01,151.96,16.48]
[1751245877934,5.26281165,152.01,151.97,16.48]
[1751245878829,5.26281165,152.01,151.95,11.40466093]
[1751245879132,5.26281165,152.01,151.98,16.48]
[1751245882334,5.26281165,152.01,151.99,16.48]
[1751245882538,26.0,151.98,151.95,6.14]
[1751245883133,5.26419688,151.97,151.95,6.14]
[1751245883740,0.28432314,151.96,151.95,6.14]
[1751245885423,26.0,151.93,151.88,0.04]
[1751245885632,26.0,151.92,151.88,0.04]
[1751245887415,31.26610327,151.92,151.88,0.04]
[1751245889227,0.28432314,151.91,151.88,0.04]
[1751245890837,26.0,151.89,151.88,0.04]
[1751245891041,5.26674671,151.9,151.88,0.04]
[1751245893535,6.91344671,151.9,151.88,0.04]
[1751245894348,0.28432314,151.89,151.88,0.04]
[1751245895233,6.91344671,151.9,151.88,0.04]
[1751245897073,0.28432314,151.89,151.88,0.04]
[1751245897357,165.833972,151.89,151.88,0.04]
[1751245897528,172.046872,151.89,151.88,0.04]
[1751245898459,177.31384151,151.89,151.88,0.04]
[1751245902754,30.41384151,151.89,151.88,0.04]
[1751245904141,5.40913108,151.89,151.88,0.04]
[1751245904658,5.55129265,151.89,151.88,0.04]